[Event "Sardinia World Festival-A 2024"]
[Site "Orosei"]
[Date "2024.04.28"]
[Round "2.30"]
[White "Olsen, Filip Boe"]
[Black "Kanyamarala, Tarun"]
[Result "1-0"]
[ECO "A07"]
[WhiteElo "2440"]
[BlackElo "2293"]
[Annotator "TA"]
[PlyCount "101"]
[EventDate "2024.04.26"]
[EventType "swiss"]
[EventCountry "ITA"]
[SourceTitle "playchess.com"]
[Source "ChessBase"]
[SourceQuality "1"]
[TimeControl "40/5400+30:1800+30"]

{[%evp 9,101,13,8,16,10,7,12,5,8,10,24,35,49,47,54,53,57,-31,0,0,0,0,8,15,10,10,0,8,0,0,36,35,36,39,42,54,43,47,41,14,14,24,17,19,18,15,20,19,29,18,43,18,44,12,46,33,33,36,73,74,75,75,80,70,73,8,10,0,75,75,75,75,75,75,347,333,326,294,1158,1011,8208,655,8033,8014,5613,2478,1473,1338,1621,6704,8007,8007,5695,4622]} 1. Nf3 {[%emt 0:00:08]} d5 {[%emt 0:00:16]} 2. g3 {[%emt 0:00:10]} Bg4 {[%emt 0:00:21]} 3. Bg2 {[%emt 0:00:11]} e6 {[%emt 0:00:20]} 4. h3 {[%emt 0:00:21]} Bh5 {[%emt 0:00:55]} 5. c4 {[%emt 0:01:01]} c6 {[%emt 0:00:43]} 6. d4 {[%emt 0:00:32]} Nd7 {[%emt 0:01:59]} 7. cxd5 {[%emt 0:00:43]} exd5 {[%emt 0:00:42]} 8. Nc3 {[%emt 0:00:11] The position is equal.} Be7 {[%emt 0:03:26]} 9. O-O {[%emt 0:02:24]} Ngf6 {[%emt 0:01:24]} 10. Ne5 {[%emt 0:00:58]} Bg6 {[%emt 0:12:43]} 11. f4 {[%emt 0:03:49] Strongly threatening f5.} Be4 {[%emt 0:01:14]} 12. Nxe4 {[%emt 0:13:51]} Nxe4 {[%emt 0:00:24]} 13. Qb3 {[%emt 0:04:44]} ({Better is} 13. Bxe4 $14 dxe4 14. Qb3 Nxe5 15. dxe5) 13... Nd6 {[%emt 0:04:37] Excellent horsemanship.} 14. e4 {[%emt 0:09:34]} dxe4 {[%emt 0:03:50]} 15. Bxe4 {[%emt 0:01:08][%cal Of1d1]} Qb6 {[%emt 0:10:16] [#] White must now prevent ...Qxb3.} (15... Nxe5 16. fxe5 Nxe4 17. Qxf7+ Kd7 18. Qf5+ (18. Qxg7 $2 Qg8 $19) 18... Ke8 19. Qxe4 $16) 16. Bg2 {[%emt 0:03:11]} f6 {[%emt 0:15:44]} 17. Nxd7 {[%emt 0:06:00]} Qxb3 {[%emt 0:00:22]} 18. axb3 {[%emt 0:02:13]} Kxd7 {[%emt 0:00:08]} 19. Be3 {[%emt 0:01:52]} Bd8 {[%emt 0:16:22]} 20. d5 {[%emt 0:02:54]} cxd5 {[%emt 0:01:20]} 21. Bxd5 {[%emt 0:03:23]} (21. Rxa7 Rxa7 22. Bxa7 Ne4 $11) 21... Bb6 {[%emt 0:02:04]} 22. Bxb6 {[%emt 0:02:59]} axb6 {[%emt 0:00:08]} 23. Rad1 {[%emt 0:00:52]} Kc7 {[%emt 0:07:42]} 24. Rd2 {[%emt 0:01:36]} Rad8 {[%emt 0:01:28]} 25. Rc1+ {[%emt 0:01:31]} Kb8 {[%emt 0:00:13]} 26. Rcd1 {[%emt 0:00:20]} Rhe8 {[%emt 0:04:06]} 27. Kf2 {[%emt 0:03:14]} Kc7 {[%emt 0:01:43]} 28. Rd3 $36 {[%emt 0:03:13][%mdl 2048] White has good play.} Re7 {[%emt 0:01:08]} 29. Kf3 {[%emt 0:04:17]} f5 {[%emt 0:05:23]} 30. g4 {[%emt 0:05:43]} h6 {[%emt 0:01:04]} 31. Bc4 {[%emt 0:02:53] Black should prevent gxf5.} Ree8 {[%emt 0:00:30]} 32. Rd5 {[%emt 0:02:03]} fxg4+ {[%emt 0:01:40]} 33. hxg4 {[%emt 0:00:11]} Nxc4 {[%emt 0:01:12]} 34. bxc4 {[%emt 0:02:19] [#] Hoping for Rxd8.} Rxd5 {[%emt 0:00:59]} 35. Rxd5 $14 {[%emt 0:00:23][%mdl 4096] Endgame. KR-KR} (35. cxd5 Kd6 $11) 35... Re1 {[%emt 0:00:23]} 36. Rf5 {[%emt 0:01:15]} Kd6 {[%emt 0:00:34]} 37. Rf7 {[%emt 0:01:55]} (37. Rf8 $16) 37... Re7 $1 $11 {[%emt 0:00:21]} 38. Rf5 {[%emt 0:06:55]} Rc7 {[%emt 0:00:07]} (38... Re1 $11 {keeps the balance.}) 39. b3 $16 {[%emt 0:00:16]} Re7 {[%emt 0:00:07]} 40. g5 {[%emt 0:01:28]} hxg5 {[%emt 0:01:00]} 41. Rxg5 {[%emt 0:32:00]} Re1 $2 {[%emt 0:13:18][%mdl 8192] This costs Black the game.} (41... Kc7 $16) 42. Rg6+ $18 {[%emt 0:00:00]} ({Less strong is} 42. Rxg7 Rb1 $16) 42... Kc5 {[%emt 0:00:54]} 43. Rxg7 {[%emt 0:00:00] Threatens to win with Rg5+.} Rb1 $2 {[%emt 0:00:11]} (43... Rf1+ 44. Ke4 Re1+ 45. Kd3 Rd1+ 46. Ke2 Ra1 47. Rg5+ (47. Rxb7 Rb1 $16) 47... Kd4) 44. Rg5+ {[%emt 0:00:00] White is clearly winning.} (44. Rxb7 Rxb3+ 45. Ke4 Rb1 $11) 44... Kd4 {[%emt 0:01:00]} 45. Rd5+ {[%emt 0:00:00]} Kc3 {[%emt 0:00:05]} 46. Rb5 {[%emt 0:00:00]} Kd4 {[%emt 0:00:41]} 47. Rxb6 {[%emt 0:00:00]} (47. f5 $142 Rg1 48. Kf4 (48. Rxb6 Ke5 $18)) 47... Rf1+ {[%emt 0:00:06]} 48. Kg4 {[%emt 0:00:00]} Ke4 {[%emt 0:00:13]} 49. Re6+ {[%emt 0:00:00]} Kd4 {[%emt 0:00:07]} 50. f5 {[%emt 0:00:00]} Rg1+ {[%emt 0:00:12]} 51. Kf4 {[%emt 0:11:19] Weighted Error Value: White=0.11 (very precise) /Black=0.24 (precise) .  Loses game:     	---       	Black=1      Mistake:       	White=2     	Black=2      Inaccurate:     	White=2     	Black=6      OK:         	White=13    	Black=13     Best:        	White=3     	Black=2      Strong:       	---       	Black=1} 1-0

[Event "Sardinia World Festival-A 2024"]
[Site "Orosei"]
[Date "2024.04.28"]
[Round "2.31"]
[White "Dalaud, Dorian"]
[Black "Ben Ari, Yannay"]
[Result "1/2-1/2"]
[ECO "B51"]
[WhiteElo "2307"]
[BlackElo "2436"]
[Annotator "RC"]
[PlyCount "63"]
[EventDate "2024.04.26"]
[EventType "swiss"]
[EventCountry "ITA"]
[SourceTitle "playchess.com"]
[Source "ChessBase"]
[SourceQuality "1"]
[TimeControl "40/5400+30:1800+30"]

1. e4 {[%emt 0:00:02]} c5 {[%emt 0:06:28]} 2. Nf3 {[%emt 0:00:46]} d6 {[%emt 0:00:17]} 3. Bb5+ {[%emt 0:01:19]} Nd7 {[%emt 0:00:14]} 4. a4 {[%emt 0:00:31]} a6 {[%emt 0:03:17]} 5. Be2 {[%emt 0:00:43]} Ngf6 {[%emt 0:00:21]} 6. Nc3 {[%emt 0:00:08]} g6 {[%emt 0:05:26]} 7. a5 {[%emt 0:00:19]} Bg7 {[%emt 0:00:23]} 8. O-O {[%emt 0:00:27]} O-O {[%emt 0:00:34]} 9. d3 {[%emt 0:00:42]} b5 {[%emt 0:01:55]} 10. axb6 {[%emt 0:01:00]} Bb7 {[%emt 0:00:07]} 11. Nd2 {[%emt 0:12:33]} Nxb6 {[%emt 0:21:25]} 12. Nb3 {[%emt 0:00:32]} Rb8 {[%emt 0:01:26]} 13. Be3 {[%emt 0:12:03]} Qc7 {[%emt 0:04:58]} 14. Qd2 {[%emt 0:14:03]} Rfc8 {[%emt 0:03:57]} 15. Na5 {[%emt 0:05:38]} Ba8 {[%emt 0:06:51]} 16. Nb3 {[%emt 0:00:26]} Bb7 {[%emt 0:06:00]} 17. Ra3 {[%emt 0:00:17]} Nfd7 {[%emt 0:05:10]} 18. Na5 {[%emt 0:11:57]} Ba8 {[%emt 0:03:43]} 19. d4 {[%emt 0:03:28]} cxd4 {[%emt 0:03:41]} 20. Bxd4 {[%emt 0:02:01]} e5 {[%emt 0:02:03]} 21. Be3 {[%emt 0:02:46]} Nf6 {[%emt 0:06:41]} 22. Bxa6 {[%emt 0:04:43]} Rd8 {[%emt 0:00:02]} 23. Bd3 {[%emt 0:11:44]} d5 {[%emt 0:00:32]} 24. exd5 {[%emt 0:01:21]} Nbxd5 {[%emt 0:04:40]} 25. Nb5 {[%emt 0:06:18]} Qe7 {[%emt 0:01:47]} 26. c4 {[%emt 0:00:42]} e4 {[%emt 0:03:57]} 27. Bb1 {[%emt 0:02:53]} Nxe3 {[%emt 0:06:06]} 28. Qxe3 {[%emt 0:00:02]} Qb4 {[%emt 0:01:09]} 29. Qb3 {[%emt 0:01:33]} Qc5 {[%emt 0:00:08]} 30. Qe3 {[%emt 0:00:21]} Qb4 {[%emt 0:00:11]} 31. Qb3 {[%emt 0:00:16]} Qc5 {[%emt 0:01:27]} 32. Qe3 {[%emt 0:00:19]} 1/2-1/2

[Event "Sardinia World Festival-A 2024"]
[Site "Orosei"]
[Date "2024.04.28"]
[Round "2.32"]
[White "Trost, Edvin"]
[Black "Tudor, Henry Edward"]
[Result "1-0"]
[ECO "B92"]
[WhiteElo "2434"]
[BlackElo "2279"]
[Annotator "TA"]
[PlyCount "55"]
[EventDate "2024.04.26"]
[EventType "swiss"]
[EventCountry "ITA"]
[SourceTitle "playchess.com"]
[Source "ChessBase"]
[SourceQuality "1"]
[TimeControl "40/5400+30:1800+30"]

{[%evp 22,55,0,0,23,21,53,47,50,45,75,15,18,17,12,0,85,81,158,154,174,164,385,339,374,365,434,448,414,330,454,443,418,426,29989,29990]} 1. e4 {[%emt 0:01:33]} c5 {[%emt 0:02:37]} 2. Nf3 {[%emt 0:00:24]} d6 {[%emt 0:00:13]} 3. d4 {[%emt 0:00:13]} cxd4 {[%emt 0:00:05]} 4. Nxd4 {[%emt 0:00:04]} Nf6 {[%emt 0:00:11]} 5. Nc3 {[%emt 0:00:03]} a6 {[%emt 0:00:04]} 6. Be2 {[%emt 0:00:05]} e5 {[%emt 0:00:58]} 7. Nb3 {[%emt 0:01:58]} Be7 {[%emt 0:00:06]} 8. Be3 {[%emt 0:00:21]} Be6 {[%emt 0:05:30]} 9. Nd5 {[%emt 0:00:35]} Nbd7 {[%emt 0:10:51]} 10. Qd3 {[%emt 0:00:25]} O-O {[%emt 0:04:23]} 11. O-O {[%emt 0:00:22]} Bxd5 {[%emt 0:00:50]} 12. exd5 {[%emt 0:00:10]} a5 {[%emt 0:11:51]} 13. a4 {[%emt 0:00:58]} Rc8 {[%emt 0:16:48]} 14. Rad1 {[%emt 0:01:40]} g6 {[%emt 0:05:20] White is slightly better.} 15. Kh1 {[%emt 0:19:23]} Ne8 {[%emt 0:05:45]} 16. c3 {[%emt 0:00:21]} (16. Qd2 $16) 16... f5 $11 {[%emt 0:05:18]} 17. Qb5 {[%emt 0:08:10]} b6 {[%emt 0:08:35]} 18. f4 {[%emt 0:01:57]} Kg7 {[%emt 0:01:52] [#]} (18... Rf7 $11 {keeps the balance.}) 19. g4 $1 $16 {[%emt 0:06:13] White has more active pieces.} Qc7 {[%emt 0:05:20]} ({Black should play} 19... Nc7 20. Qd3 (20. Bxb6 $2 Nxb6 21. Qxb6 Rb8 $19) 20... exf4 21. Bxf4 g5) 20. gxf5 {[%emt 0:06:36]} gxf5 {[%emt 0:00:01]} 21. Bd3 {[%emt 0:01:17][%cal Be2d3,Bd3f5,Bf5c8][%mdl 32]} Nc5 $2 {[%emt 0:04:58]} (21... Kh8 22. Rg1 (22. fxe5 dxe5 23. Rxf5 Nd6 $14) 22... Nc5) 22. fxe5 $18 {[%emt 0:03:37]} ({Don't play} 22. Nxc5 dxc5 23. fxe5 Qxe5 $18) 22... dxe5 {[%emt 0:00:03]} 23. Bxf5 {[%emt 0:01:15]} ({Less strong is} 23. Rxf5 Nd6 24. Nxc5 bxc5 $18) 23... Nd6 {[%emt 0:03:46] [#]} 24. Nxc5 $1 {[%emt 0:00:29]} bxc5 {[%emt 0:00:12]} 25. Qd3 {[%emt 0:01:00][%cal Oe3h6] Strongly threatening Bh6+!} c4 {[%emt 0:05:24] [#]} 26. Bh6+ $1 {[%emt 0:02:42][%mdl 512] This pair of bishops is nice.} Kh8 {[%emt 0:00:01]} 27. Qg3 {[%emt 0:00:19][%csl Gh6][%cal Rg3g7]} (27. Qh3 Rxf5 28. Rxf5 Nxf5 29. Qxf5 Rg8 $18) 27... Bh4 {[%emt 0:01:58]} (27... Nxf5 $18 28. Rxf5 Rg8 29. Qxe5+ Qxe5 30. Rxe5 Bd6) 28. Bxc8 {[%emt 0:00:46] Weighted Error Value: White=0.16 (very precise) /Black=0.84.  Mistake:       	White=1     	Black=4      Inaccurate:     	---       	Black=3      OK:         	White=8     	Black=1      Best:        	White=2     	Black=1      Strong:       	White=1     	---} ({Weaker is} 28. Qxh4 Nxf5 29. Qg5 Nxh6 30. Qxh6 Qe7 $18) 1-0

[Event "Sardinia World Festival-A 2024"]
[Site "Orosei"]
[Date "2024.04.28"]
[Round "2.33"]
[White "Bifulco, Michel"]
[Black "Degraeve, Remy"]
[Result "1/2-1/2"]
[ECO "C48"]
[WhiteElo "2303"]
[BlackElo "2432"]
[Annotator "TA"]
[PlyCount "226"]
[EventDate "2024.04.26"]
[EventType "swiss"]
[EventCountry "ITA"]
[SourceTitle "playchess.com"]
[Source "ChessBase"]
[SourceQuality "1"]
[TimeControl "40/5400+30:1800+30"]

{[%evp 151,226,0,0,0,0,0,0,0,0,0,0,0,0,0,0,0,0,0,0,0,0,0,0,0,0,0,0,0,0,0,0,0,0,0,0,0,0,0,0,0,0,0,0,0,0,0,0,0,0,0,0,0,0,0,0,0,0,0,0,0,0,0,0,0,0,0,0,0,0,0,0,0,0,0,0,0,0]} 1. e4 {[%emt 0:00:04]} e5 {[%emt 0:00:59]} 2. Nf3 {[%emt 0:00:13]} Nc6 {[%emt 0:00:03]} 3. Nc3 {[%emt 0:00:17]} Nf6 {[%emt 0:00:05]} 4. Bb5 {[%emt 0:00:11]} Bc5 {[%emt 0:00:28]} 5. O-O {[%emt 0:00:15]} O-O {[%emt 0:00:38]} 6. Nxe5 {[%emt 0:00:12]} Nxe5 {[%emt 0:00:07]} 7. d4 {[%emt 0:00:06]} a6 {[%emt 0:00:45] C48: Four Knights: 4 Bb5, replies other than 4...Bb4.} 8. Be2 {[%emt 0:14:16]} d5 $146 {[%emt 0:00:06]} ({Predecessor:} 8... Bd6 9. f4 Nc6 10. e5 Be7 11. d5 Bc5+ 12. Kh1 Nd4 13. exf6 Qxf6 14. Ne4 Qe7 15. Bd3 {1-0 Efroimski,M (2347)-Shevchenko,D (2208) Elitzur Int Online blitz 2020 (9)}) 9. exd5 {[%emt 0:08:20]} Bd6 {[%emt 0:03:32]} 10. dxe5 {[%emt 0:00:21]} Bxe5 {[%emt 0:00:07]} 11. Bf3 {[%emt 0:03:26]} Qd6 {[%emt 0:01:30]} 12. g3 {[%emt 0:04:13]} Bf5 {[%emt 0:02:31]} 13. Re1 {[%emt 0:02:21]} Rad8 {[%emt 0:04:24]} 14. Ne4 {[%emt 0:13:31]} Nxe4 {[%emt 0:00:27]} 15. Bxe4 {[%emt 0:00:06]} Bxe4 {[%emt 0:00:28]} 16. Rxe4 {[%emt 0:00:11]} f5 {[%emt 0:01:38]} 17. Re3 {[%emt 0:11:21]} f4 {[%emt 0:04:01]} 18. Rd3 {[%emt 0:00:24]} Qg6 {[%emt 0:08:50]} 19. Bd2 {[%emt 0:05:11]} h5 {[%emt 0:05:42]} 20. Bc3 {[%emt 0:01:41]} Bd6 {[%emt 0:00:35]} 21. Qf1 {[%emt 0:22:33]} h4 {[%emt 0:04:26]} 22. g4 {[%emt 0:08:25]} f3 {[%emt 0:03:54]} 23. Qh3 {[%emt 0:01:41]} Rf4 {[%emt 0:01:26]} 24. Rxf3 {[%emt 0:00:11]} Rxg4+ {[%emt 0:01:02]} 25. Kh1 {[%emt 0:00:02]} Re8 {[%emt 0:01:03]} 26. Re3 {[%emt 0:00:27]} Rxe3 {[%emt 0:14:21]} 27. Qxe3 {[%emt 0:00:08]} Rg2 {[%emt 0:03:15]} 28. Be5 {[%emt 0:00:35]} Bxe5 {[%emt 0:00:05]} 29. Qxe5 {[%emt 0:00:08]} h3 {[%emt 0:00:03]} 30. Rf1 {[%emt 0:03:50]} Rg5 {[%emt 0:02:54]} 31. Qe6+ {[%emt 0:00:37]} Qxe6 {[%emt 0:00:09]} 32. dxe6 {[%emt 0:00:02]} Re5 {[%emt 0:00:28]} 33. Rd1 {[%emt 0:01:05]} Rxe6 {[%emt 0:00:07]} 34. Kg1 {[%emt 0:00:10]} Re2 {[%emt 0:00:31]} 35. Rc1 {[%emt 0:00:08]} Re6 {[%emt 0:03:35]} 36. Rd1 {[%emt 0:00:23]} Rg6+ {[%emt 0:00:33]} 37. Kf1 {[%emt 0:00:07]} Rb6 {[%emt 0:04:03]} 38. b3 {[%emt 0:00:12]} Rc6 {[%emt 0:00:02]} 39. c4 {[%emt 0:00:37]} b5 {[%emt 0:00:03]} 40. Rd3 {[%emt 0:01:27]} bxc4 {[%emt 0:00:16]} 41. bxc4 {[%emt 0:30:43]} Rxc4 {[%emt 0:30:06]} 42. Rxh3 {[%emt 0:00:21]} a5 {[%emt 0:00:54]} 43. Ra3 {[%emt 0:00:00]} a4 {[%emt 0:00:00]} 44. Ke2 {[%emt 0:00:00]} Kf7 {[%emt 0:00:00]} 45. Kd3 {[%emt 0:00:00]} Rh4 {[%emt 0:00:00]} 46. Ke2 {[%emt 0:00:00]} Ke6 {[%emt 0:00:00]} 47. Rg3 {[%emt 0:00:00]} Rb4 {[%emt 0:00:00]} 48. Rxg7 {[%emt 0:00:00]} c5 {[%emt 0:00:00]} 49. a3 {[%emt 0:00:00]} Rb2+ {[%emt 0:00:00]} 50. Kd1 {[%emt 0:00:00]} Ra2 {[%emt 0:00:00]} 51. h4 {[%emt 0:00:41]} Kd5 {[%emt 0:02:54]} 52. h5 {[%emt 0:01:47]} Rxf2 {[%emt 0:00:35]} 53. Rg4 {[%emt 0:01:39]} Rh2 {[%emt 0:00:14]} 54. Rxa4 {[%emt 0:00:09]} c4 {[%emt 0:00:02]} 55. Ra8 {[%emt 0:02:15]} Kd4 {[%emt 0:00:05]} 56. Kc1 {[%emt 0:00:37]} Kc3 {[%emt 0:00:53]} 57. Kb1 {[%emt 0:00:17]} Rh1+ {[%emt 0:03:41]} 58. Ka2 {[%emt 0:00:01]} Rxh5 {[%emt 0:00:14]} 59. Rc8 {[%emt 0:00:39]} Rb5 {[%emt 0:00:03]} 60. a4 {[%emt 0:01:01]} Rb7 {[%emt 0:00:32]} 61. a5 {[%emt 0:00:25]} Rb5 {[%emt 0:02:37]} 62. a6 {[%emt 0:00:18]} Ra5+ {[%emt 0:00:21]} 63. Kb1 {[%emt 0:00:01]} Rxa6 {[%emt 0:00:04]} 64. Rc7 {[%emt 0:00:30]} Rb6+ {[%emt 0:00:06]} 65. Kc1 {[%emt 0:00:09]} Rh6 {[%emt 0:00:04]} 66. Kb1 {[%emt 0:00:06]} Rh1+ {[%emt 0:00:05]} 67. Ka2 {[%emt 0:00:03]} Kd3 {[%emt 0:00:05]} 68. Kb2 {[%emt 0:00:09]} Rh2+ {[%emt 0:00:03]} 69. Kc1 {[%emt 0:00:37]} Kc3 {[%emt 0:00:12]} 70. Kb1 {[%emt 0:00:03]} Rh1+ {[%emt 0:00:05]} 71. Ka2 {[%emt 0:00:04]} Rc1 {[%emt 0:00:03]} 72. Rh7 {[%emt 0:00:29]} Rd1 {[%emt 0:00:08]} 73. Rc7 {[%emt 0:00:16]} Kd3 {[%emt 0:00:08]} 74. Kb2 {[%emt 0:00:08]} Rd2+ {[%emt 0:00:06]} 75. Kc1 {[%emt 0:00:23]} Rh2 {[%emt 0:00:04]} 76. Rc8 {[%emt 0:00:25]} Rh7 {[%emt 0:00:06]} (76... Kc3 $5 77. Kb1 $8 Rd2 $11) 77. Kb2 {[%emt 0:00:44]} Rb7+ {[%emt 0:01:20]} 78. Kc1 {[%emt 0:00:07]} Kc3 {[%emt 0:00:06]} 79. Rc6 {[%emt 0:00:26]} Kb3 {[%emt 0:00:09]} 80. Kb1 {[%emt 0:00:26]} Rd7 {[%emt 0:00:48]} 81. Rb6+ {[%emt 0:00:18]} Kc3 {[%emt 0:00:02]} 82. Rc6 {[%emt 0:00:06]} Rd1+ {[%emt 0:00:22]} 83. Ka2 {[%emt 0:00:04]} Rd4 {[%emt 0:00:04]} 84. Kb1 {[%emt 0:00:23]} Rd2 {[%emt 0:00:59]} 85. Rc7 {[%emt 0:00:31]} Rb2+ {[%emt 0:00:07]} 86. Kc1 {[%emt 0:00:07]} Rb4 {[%emt 0:00:03]} (86... Re2 $5 87. Kb1 $8 Re1+ 88. Ka2 Rh1 $11) 87. Rc8 {[%emt 0:03:06]} Kb3 {[%emt 0:00:03]} 88. Kb1 $1 {[%emt 0:00:08]} Rb7 {[%emt 0:00:04]} 89. Rc6 {[%emt 0:00:26]} Rg7 {[%emt 0:00:04]} 90. Rb6+ {[%emt 0:00:09]} Kc3 {[%emt 0:00:03]} 91. Rc6 {[%emt 0:00:07]} Rg1+ {[%emt 0:00:04]} 92. Ka2 {[%emt 0:00:08]} Rd1 {[%emt 0:00:07]} 93. Rc8 {[%emt 0:00:31]} Rd2+ {[%emt 0:00:12]} 94. Kb1 {[%emt 0:00:10]} Rd4 {[%emt 0:00:02]} 95. Rc7 {[%emt 0:03:49]} Kd2 {[%emt 0:00:07]} 96. Kb2 {[%emt 0:00:12]} Kd3 {[%emt 0:00:10]} 97. Rc8 {[%emt 0:00:10]} Rd7 {[%emt 0:00:05]} 98. Rc6 {[%emt 0:00:21]} Rb7+ {[%emt 0:00:06]} 99. Kc1 {[%emt 0:00:13]} Rh7 {[%emt 0:00:06]} 100. Kb2 {[%emt 0:00:15]} Rh2+ {[%emt 0:00:15]} 101. Kc1 {[%emt 0:00:13]} Kc3 {[%emt 0:00:04]} 102. Kb1 {[%emt 0:00:04]} Rh1+ {[%emt 0:00:05]} 103. Ka2 {[%emt 0:00:05]} Rc1 {[%emt 0:00:03]} 104. Rh6 {[%emt 0:00:07]} Rc2+ {[%emt 0:00:06]} 105. Kb1 {[%emt 0:00:09]} Rb2+ {[%emt 0:00:03]} 106. Kc1 {[%emt 0:00:54]} Rd2 {[%emt 0:00:04]} 107. Rc6 {[%emt 0:00:58]} Ra2 {[%emt 0:00:05]} 108. Kb1 {[%emt 0:00:18]} Ra4 {[%emt 0:00:04]} 109. Rc8 {[%emt 0:01:27]} Kd2 {[%emt 0:00:05]} 110. Rd8+ {[%emt 0:00:18]} Kc3 {[%emt 0:00:04]} 111. Rc8 {[%emt 0:00:03]} Kb3 {[%emt 0:00:04]} 112. Rc7 {[%emt 0:00:43]} Ra8 {[%emt 0:00:12]} 113. Rc6 {[%emt 0:00:21]} Rb8 {[%emt 0:00:06]} 1/2-1/2

[Event "Sardinia World Festival-A 2024"]
[Site "Orosei"]
[Date "2024.04.28"]
[Round "2.34"]
[White "Kilic, Eray"]
[Black "Nurgaliyev, Sauat"]
[Result "1-0"]
[ECO "B90"]
[WhiteElo "2429"]
[BlackElo "2262"]
[Annotator "TA"]
[PlyCount "103"]
[EventDate "2024.04.26"]
[EventType "swiss"]
[EventCountry "ITA"]
[SourceTitle "playchess.com"]
[Source "ChessBase"]
[SourceQuality "1"]
[TimeControl "40/5400+30:1800+30"]

{[%evp 24,103,18,17,19,0,0,0,0,0,64,55,144,139,210,108,104,100,106,30,40,0,0,0,0,0,0,0,42,35,69,63,81,77,86,96,86,103,106,103,107,93,180,150,176,181,182,179,185,181,182,145,150,127,146,141,229,185,206,206,190,205,206,203,270,254,330,318,418,409,465,466,439,386,705,705,697,685,783,802,728,703]} 1. e4 {[%emt 0:00:03]} c5 {[%emt 0:00:37]} 2. Nf3 {[%emt 0:00:03]} d6 {[%emt 0:00:47]} 3. d4 {[%emt 0:00:05]} cxd4 {[%emt 0:00:06]} 4. Nxd4 {[%emt 0:00:04]} Nf6 {[%emt 0:00:07]} 5. Nc3 {[%emt 0:00:02]} a6 {[%emt 0:00:05]} 6. h3 {[%emt 0:00:03]} e5 {[%emt 0:00:25]} 7. Nf3 {[%emt 0:00:04] B90: Sicilian Najdorf: Unusual White 6th moves, 6 Be3 Ng4 and 6 Be3 e5.} Be7 {[%emt 0:02:52]} 8. g4 $1 {[%emt 0:00:56] 8.g4 scores better than 8.Bc4.} h6 {[%emt 0:00:40]} 9. Rg1 {[%emt 0:00:05]} Nbd7 {[%emt 0:01:27]} 10. g5 {[%emt 0:01:26]} hxg5 {[%emt 0:00:15]} 11. Nxg5 {[%emt 0:00:06]} Qc7 {[%emt 0:01:30]} 12. Be3 {[%emt 0:01:00]} b5 {[%emt 0:02:03]} 13. Qd2 {[%emt 0:03:48]} Bb7 {[%emt 0:03:07]} 14. O-O-O {[%emt 0:01:44]} b4 {[%emt 0:03:56]} 15. Nd5 {[%emt 0:01:22]} Nxd5 $1 {[%emt 0:00:42]} 16. exd5 {[%emt 0:00:06]} Nb6 $146 {[%emt 0:01:13]} (16... Nf6 $11) ({Predecessor:} 16... Nf6 17. Bg2 Bc8 18. f4 Bf5 19. Kb1 exf4 20. Bxf4 O-O 21. Be3 Rfc8 22. Rc1 Rab8 {1-0 De Winter,A (2405)-Beerdsen,T (2511) Groningen op 59th 2023 (3)}) 17. Qxb4 $14 {[%emt 0:06:31]} Nxd5 {[%emt 0:04:58]} (17... Bxg5 $14 18. Bxg5 (18. Rxg5 Nxd5 19. Qb3 Nxe3 $14) 18... Rc8) 18. Qb3 $16 {[%emt 0:02:13]} Rc8 {[%emt 0:07:25]} (18... Bxg5 $16 19. Bxg5 (19. Rxg5 Nxe3 20. Qxe3 Rc8 $14) 19... Nf6) 19. c3 {[%emt 0:00:50]} (19. Rxd5 $2 Bxd5 20. Qd3 Bc4 $19 (20... Bxa2 $2 21. Qd1 $19) (20... Qa5 $2 21. Bg2 $19)) (19. Bg2 $1 $18 {[%cal Rg2d5]}) 19... Bxg5 $16 {[%emt 0:12:35]} 20. Bxg5 {[%emt 0:00:23]} Nf6 {[%emt 0:02:56]} 21. Bxf6 {[%emt 0:06:00]} (21. f4 $1 $16) 21... gxf6 $11 {[%emt 0:00:02]} 22. Bd3 {[%emt 0:00:07]} Bf3 {[%emt 0:02:35]} 23. Rd2 {[%emt 0:03:00]} Rb8 {[%emt 0:08:07]} 24. Qa3 {[%emt 0:01:43]} Ke7 {[%emt 0:04:49]} 25. Rg3 {[%emt 0:02:57]} (25. Bxa6 $2 Rb6 26. Qa4 Ra8 $19 (26... Rxh3 27. Bd3 $11)) 25... Bd5 {[%emt 0:09:16]} 26. Bf5 {[%emt 0:02:37]} (26. Qxa6 $2 Ra8 27. Qb5 Bxa2 $19) 26... Rb5 {[%emt 0:01:50]} 27. Rgd3 $1 {[%emt 0:22:56]} (27. Qxa6 $2 Ra5 28. Qe2 Bc4 $19) 27... Ra5 {[%emt 0:03:25]} 28. Qb4 {[%emt 0:00:05]} Rb8 {[%emt 0:01:21] [#]} 29. Qg4 $1 {[%emt 0:00:04]} Rxa2 {[%emt 0:16:26]} 30. Rxd5 {[%emt 0:00:12]} Rbxb2 {[%emt 0:00:05] [#]} 31. Qf3 $1 {[%emt 0:00:09]} (31. Rxb2 Qxc3+ 32. Kd1 Qxb2 (32... Rxb2 33. Qa4 $15) 33. Qe4 Ra1+ (33... Qxf2 $2 34. Qc2 $19) (33... Qxf2 $2 34. Qc2 $19)) 31... Qb6 {[%emt 0:03:30]} 32. Kd1 {[%emt 0:00:53]} Qb3+ {[%emt 0:01:01]} (32... a5 $16 {was called for.}) 33. Ke2 {[%emt 0:00:28]} Qc4+ {[%emt 0:01:54]} 34. Ke1 {[%emt 0:00:11]} Ra1+ {[%emt 0:02:16]} 35. Rd1 {[%emt 0:00:15]} Raa2 {[%emt 0:01:40]} 36. R5d2 {[%emt 0:00:39]} (36. Rxd6 Re2+ 37. Kf1 Rxf2+ 38. Kg1 Rxf3 39. Rd7+ Kf8 40. Rd8+ Kg7 41. R8d7 Rxf5 42. R7d2 Rg5+ 43. Kf2 Qf4+ 44. Ke2 Rg2+ (44... Rxd2+ 45. Rxd2 Rg2+ 46. Ke1 Qxd2+ 47. Kf1 Qf2#) 45. Ke1 Qe3+ 46. Kf1 Rg1#) 36... a5 {[%emt 0:01:42]} 37. Bb1 {[%emt 0:05:01]} (37. Rxd6 Re2+ 38. Kf1 Rxf2+ 39. Kg1 Rxf3 40. Rd7+ Kf8 41. Rd8+ Kg7 42. R8d7 Rxf5 43. R7d2 Rg5+ 44. Kf2 Qf4+ 45. Ke2 Rg2+ (45... Rxd2+ 46. Rxd2 Rg2+ 47. Ke1 Qxd2+ 48. Kf1 Qf2#) 46. Ke1 Qe3+ 47. Kf1 Rg1#) 37... Rxd2 {[%emt 0:00:38]} 38. Rxd2 {[%emt 0:00:02]} Rxd2 {[%emt 0:00:31]} 39. Kxd2 {[%emt 0:00:36]} d5 {[%emt 0:00:13]} (39... Qb5 $16) 40. Qe3 {[%emt 0:01:01]} Kf8 {[%emt 0:00:50]} 41. Bd3 {[%emt 0:31:18]} Qa2+ {[%emt 0:02:28]} 42. Bc2 {[%emt 0:00:00]} Qc4 {[%emt 0:01:11]} 43. Qd3 {[%emt 0:00:00]} Qf4+ {[%emt 0:03:53]} 44. Ke2 {[%emt 0:00:00]} e4 {[%emt 0:02:54]} 45. Qe3 {[%emt 0:00:00]} ({Weaker is} 45. Qxd5 Qf3+ 46. Kf1 (46. Ke1 Qh1+ 47. Ke2 Qf3+ 48. Kf1 Qxh3+ 49. Ke1 Qxc3+ 50. Kd1 Qf3+ 51. Kc1 Qxf2 $11) 46... Qh1+ 47. Ke2 Qf3+ 48. Kf1 (48. Ke1 Qh1+ 49. Ke2 Qf3+ $11) 48... Qxh3+ 49. Kg1 Qg4+ 50. Kh2 Qh4+ 51. Kg2 Qg4+ 52. Kf1 Qh3+ 53. Ke2 Qf3+ 54. Ke1 Qh1+ 55. Ke2 Qf3+ 56. Ke1 Qh1+ 57. Ke2 Qf3+ $11) 45... Qf5 {[%emt 0:01:50]} 46. Bb3 {[%emt 0:00:00]} Qh5+ {[%emt 0:01:32]} 47. Ke1 {[%emt 0:00:00]} Kg7 {[%emt 0:01:35]} 48. Qg3+ {[%emt 0:00:00]} Kh7 $2 {[%emt 0:00:10]} (48... Kh6 49. Qg4 Qe5) 49. Qg4 $18 {[%emt 0:00:00]} Qh6 {[%emt 0:01:52]} 50. Kd1 {[%emt 0:00:00]} ({Less strong is} 50. Bxd5 Qc1+ 51. Qd1 (51. Ke2 Qc2+ 52. Kf1 Qd3+ 53. Kg2 Qxd5 $17) 51... Qxc3+ 52. Qd2 Qxh3 $18) 50... e3 {[%emt 0:02:16]} 51. f4 {[%emt 0:00:00]} Qf8 {[%emt 0:00:30]} 52. Bc2+ {[%emt 0:00:00]} 1-0